fUST/lending_fUST_20240818
["ID","MTS","AMOUNT","RATE_DAILY","PERIOD"]
[335195200,1723971044662,-1253.09,0.00018146,2]
[335195201,1723971044671,-1462.81,0.00018146,2]
[335195202,1723971044681,-826.7,0.00018146,2]
[335195203,1723971044692,-1209.61,0.00018146,2]
[335195204,1723971044703,-506.64087137,0.00018146,2]
[335195205,1723971044713,-607.02,0.00018146,2]
[335195206,1723971044725,-500.0,0.00018146,2]
[335195207,1723971044735,-1986.35,0.00018146,2]
[335195208,1723971044746,-500.0,0.00018146,2]
[335195209,1723971044757,-500.0,0.00018146,2]
[335195210,1723971044767,-500.0,0.00018146,2]
[335195211,1723971044871,-321.84816398,0.00018146,2]
[335195212,1723971044896,-1466.62,0.00018146,2]
[335195213,1723971044907,-500.0,0.00018146,2]
[335195214,1723971044916,-500.0,0.00018146,2]
[335195215,1723971044926,-500.0,0.00018146,2]
[335195216,1723971044936,-502.74047752,0.00018146,2]
[335195217,1723971044946,-599.06,0.00018146,2]
[335195218,1723971044956,-500.0,0.00018146,2]
[335195219,1723971044967,-1161.08,0.00018146,2]
[335195220,1723971044977,-609.1,0.00018146,2]
[335195221,1723971044988,-1062.86,0.00018146,2]
[335195222,1723971044998,-703.24,0.00018146,2]
[335195223,1723971045007,-500.0,0.00018146,2]
[335195224,1723971045018,-500.0,0.00018146,2]
[335195225,1723971045027,-500.0,0.00018146,2]
[335195226,1723971045037,-989.63,0.00018146,2]
[335195227,1723971045047,-778.86,0.00018146,2]
[335195228,1723971045056,-500.0,0.00018146,2]
[335195229,1723971045066,-500.0,0.00018146,2]
[335195230,1723971045075,-505.01,0.00018146,2]
[335195231,1723971045084,-500.0,0.00018146,2]
[335195232,1723971045093,-819.08,0.00018146,2]
[335195233,1723971045103,-500.0,0.00018146,2]
[335195234,1723971045112,-500.0,0.00018146,2]
[335195235,1723971045121,-1495.25,0.00018146,2]
[335195236,1723971045134,-15649.67,0.00018148,2]
[335195237,1723971045144,-15649.67,0.00018148,2]
[335195238,1723971045154,-15649.67,0.00018148,2]
[335195239,1723971045163,-15649.67,0.00018148,2]
[335195240,1723971045174,-1113.33,0.00018149,2]
[335195241,1723971045184,-500.0,0.00018149,2]
[335195242,1723971045195,-500.0,0.00018149,2]
[335195243,1723971045206,-500.0,0.00018149,2]
[335195244,1723971045215,-500.0,0.00018149,2]
[335195245,1723971045224,-500.0,0.00018149,2]
[335195246,1723971045234,-500.0,0.00018149,2]
[335195247,1723971045243,-549.63,0.00018149,2]
[335195248,1723971045253,-500.0,0.00018149,2]
[335195249,1723971045265,-500.0,0.00018149,2]
[335195250,1723971045275,-500.0,0.00018149,2]
[335195251,1723971045286,-500.0,0.00018149,2]
[335195252,1723971045295,-500.0,0.00018149,2]
[335195253,1723971045305,-570.15,0.00018149,2]
[335195254,1723971045314,-686.22,0.00018149,2]
[335195255,1723971045324,-500.0,0.00018149,2]
[335195256,1723971045335,-500.0,0.00018149,2]
[335195257,1723971045345,-500.0,0.00018149,2]
[335195258,1723971045356,-506.51232328,0.00018149,2]
[335195259,1723971045367,-500.0,0.00018149,2]
[335195260,1723971045376,-813.3,0.00018149,2]
[335195261,1723971045385,-1421.03,0.00018149,2]
[335195262,1723971045395,-1162.98,0.00018149,2]
[335195263,1723971045404,-500.0,0.00018149,2]
[335195264,1723971045413,-740.26,0.00018149,2]
[335195265,1723971045422,-500.0,0.00018149,2]
[335195266,1723971045432,-569.16,0.00018149,2]
[335195267,1723971045441,-500.0,0.00018149,2]
[335195268,1723971045450,-500.0,0.00018149,2]
[335195269,1723971045460,-720.31,0.00018149,2]
[335195270,1723971045470,-242.74466697,0.00018149,2]
[335195271,1723971045479,-815.49,0.00018149,2]
[335195272,1723971045488,-500.0,0.00018149,2]
[335195273,1723971045497,-500.0,0.00018149,2]
[335195274,1723971045507,-500.0,0.00018149,2]
[335195275,1723971045516,-500.0,0.00018149,2]
[335195276,1723971045526,-500.0,0.00018149,2]
[335195277,1723971045535,-779.06,0.00018149,2]
[335195278,1723971045545,-500.0,0.00018149,2]
[335195279,1723971045554,-500.0,0.00018149,2]
[335195280,1723971045563,-596.31,0.00018149,2]
[335195281,1723971045573,-529.96242186,0.00018149,2]
[335195282,1723971045582,-829.0,0.00018149,2]
[335195283,1723971045592,-500.0,0.00018149,2]
[335195284,1723971045601,-500.0,0.00018149,2]
[335195285,1723971045610,-500.0,0.00018149,2]
[335195286,1723971045620,-500.0,0.00018149,2]
[335195287,1723971045629,-500.0,0.00018149,2]
[335195288,1723971045638,-500.0,0.00018149,2]
[335195289,1723971045648,-500.0,0.00018149,2]
[335195290,1723971045657,-632.45161308,0.00018149,2]
[335195291,1723971045666,-500.0,0.00018149,2]
[335195292,1723971045675,-622.83,0.00018149,2]
[335195293,1723971045685,-500.0,0.00018149,2]
[335195294,1723971045694,-576.04,0.00018149,2]
[335195295,1723971045704,-500.0,0.00018149,2]
[335195296,1723971045713,-179.59121993,0.00018149,2]
[335195297,1723971045723,-500.0,0.00018149,2]
[335195298,1723971045732,-948.05,0.00018149,2]
[335195299,1723971045742,-500.0,0.00018149,2]
[335195300,1723971045752,-500.0,0.00018149,2]
[335195301,1723971045761,-500.0,0.00018149,2]
[335195302,1723971045772,-538.59,0.00018149,2]
[335195303,1723971045781,-695.18,0.00018149,2]
[335195304,1723971045791,-1000.0,0.00018149,2]
[335195305,1723971045801,-560.14527885,0.00018149,2]
[335195306,1723971045811,-979.67,0.00018149,2]
[335195307,1723971045820,-500.0,0.00018149,2]
[335195308,1723971045829,-500.0,0.00018149,2]
[335195309,1723971045838,-500.0,0.00018149,2]
[335195310,1723971045847,-500.0,0.00018149,2]
[335195312,1723971045856,-512.53,0.00018149,2]
[335195314,1723971045866,-500.0,0.00018149,2]
[335195315,1723971045875,-500.0,0.00018149,2]
[335195316,1723971045885,-500.0,0.00018149,2]
[335195317,1723971045894,-505.90449131,0.00018149,2]
[335195318,1723971045904,-500.0,0.00018149,2]
[335195319,1723971045913,-511.98,0.00018149,2]
[335195321,1723971045922,-566.77,0.00018149,2]
[335195324,1723971045931,-500.0,0.00018149,2]
[335195327,1723971045940,-500.0,0.00018149,2]
[335195330,1723971045950,-500.0,0.00018149,2]
[335195332,1723971045960,-500.0,0.00018149,2]
[335195334,1723971045970,-504.00846411,0.00018149,2]
[335195335,1723971045979,-500.0,0.00018149,2]
[335195337,1723971045989,-500.0,0.00018149,2]
[335195339,1723971045999,-500.0,0.00018149,2]
[335195341,1723971046008,-500.0,0.00018149,2]
[335195343,1723971046019,-500.0,0.00018149,2]
[335195345,1723971046028,-500.0,0.00018149,2]
[335195347,1723971046038,-500.0,0.00018149,2]
[335195349,1723971046047,-743.39,0.00018149,2]
[335195351,1723971046058,-536.84,0.00018149,2]
[335195353,1723971046068,-500.0,0.00018149,2]
[335195355,1723971046077,-500.0,0.00018149,2]
[335195356,1723971046087,-500.0,0.00018149,2]
[335195358,1723971046097,-500.0,0.00018149,2]
[335195360,1723971046106,-1518.55,0.00018149,2]
[335195361,1723971046116,-500.0,0.00018149,2]
[335195362,1723971046126,-500.0,0.00018149,2]
[335195364,1723971046139,-502.45859411,0.00018149,2]
[335195365,1723971046150,-672.8,0.00018149,2]
[335195367,1723971046160,-508.39620964,0.00018149,2]
[335195369,1723971046171,-500.0,0.00018149,2]
[335195371,1723971046181,-500.0,0.00018149,2]
[335195372,1723971046192,-454.33912668,0.00018149,2]
[335195373,1723971046203,-500.0,0.00018149,2]
[335195374,1723971046215,-507.65850958,0.00018149,2]
[335195375,1723971046225,-861.87,0.00018149,2]
[335195376,1723971046235,-500.0,0.00018149,2]
[335195377,1723971046244,-565.50512077,0.00018149,2]
[335195378,1723971046254,-733.37,0.00018149,2]
[335195379,1723971046263,-500.0,0.00018149,2]
[335195380,1723971046274,-3485.96,0.00018149,2]
[335195381,1723971046284,-2421.03,0.00018149,2]
[335195382,1723971046294,-500.0,0.00018149,2]
[335195383,1723971046303,-500.0,0.00018149,2]
[335195384,1723971046313,-999.13,0.00018149,2]
[335195385,1723971046323,-500.0,0.00018149,2]
[335195386,1723971046332,-500.0,0.00018149,2]
[335195387,1723971046341,-1288.02,0.00018149,2]
[335195388,1723971046350,-500.0,0.00018149,2]
[335195389,1723971046360,-500.0,0.00018149,2]
[335195390,1723971046370,-992.11,0.00018149,2]
[335195391,1723971046379,-511.64450692,0.00018149,2]
[335195392,1723971046388,-500.0,0.00018149,2]
[335195393,1723971046398,-500.0,0.00018149,2]
[335195394,1723971046408,-500.0,0.00018149,2]
[335195395,1723971046417,-1098.87,0.00018149,2]
[335195396,1723971046427,-762.58,0.00018149,2]
[335195397,1723971046437,-500.0,0.00018149,2]
[335195398,1723971046446,-500.0,0.00018149,2]
[335195399,1723971046455,-500.0,0.00018149,2]
[335195400,1723971046464,-500.0,0.00018149,2]
[335195401,1723971046474,-500.0,0.00018149,2]
[335195402,1723971046483,-500.0,0.00018149,2]
[335195403,1723971046492,-500.0,0.00018149,2]
[335195404,1723971046502,-500.0,0.00018149,2]
[335195405,1723971046512,-500.0,0.00018149,2]
[335195406,1723971046523,-501.7969771,0.00018149,2]
[335195407,1723971046532,-500.0,0.00018149,2]
[335195408,1723971046541,-500.0,0.00018149,2]
[335195409,1723971046551,-1102.68,0.00018149,2]
[335195410,1723971046560,-500.0,0.00018149,2]
[335195411,1723971046570,-679.86,0.00018149,2]
[335195412,1723971046579,-500.0,0.00018149,2]
[335195413,1723971046588,-500.0,0.00018149,2]
[335195414,1723971046597,-500.0,0.00018149,2]
[335195415,1723971046606,-2307.18,0.00018149,2]
[335195416,1723971046615,-500.0,0.00018149,2]
[335195417,1723971046625,-946.44,0.00018149,2]
[335195418,1723971046634,-500.0,0.00018149,2]
[335195419,1723971046644,-500.0,0.00018149,2]
[335195420,1723971046653,-724.09,0.00018149,2]
[335195421,1723971046663,-757.94,0.00018149,2]
[335195422,1723971046674,-813.92,0.00018149,2]
[335195423,1723971046683,-819.97,0.00018149,2]
[335195424,1723971046692,-15649.67,0.00018149,2]
[335195425,1723971046701,-15649.67,0.00018149,2]
[335195426,1723971046710,-500.0,0.00018149,2]
[335195427,1723971046719,-151.0,0.00018151,2]
[335195428,1723971046728,-151.0,0.00018151,2]
[335195429,1723971046738,-15649.67,0.00018157,2]
[335195430,1723971046747,-500.0,0.00018158,2]
[335195431,1723971046756,-500.0,0.00018158,2]
[335195432,1723971046766,-15649.67,0.00018158,2]
[335195433,1723971046775,-589.17209979,0.00018159,2]
[335195434,1723971046784,-500.0,0.00018159,2]
[335195435,1723971046794,-515.79324204,0.00018159,2]
[335195436,1723971046803,-15649.67,0.00018159,2]
[335195437,1723971046812,-500.0,0.0001816,2]
[335195438,1723971046821,-500.0,0.0001816,2]
[335195439,1723971046830,-500.0,0.0001816,2]
[335195440,1723971046841,-518.86573632,0.0001816,2]
[335195441,1723971046850,-500.0,0.0001816,2]
[335195442,1723971046859,-500.0,0.0001816,2]
[335195443,1723971046869,-500.0,0.0001816,2]
[335195444,1723971046878,-500.0,0.0001816,2]
[335195445,1723971046887,-500.0,0.0001816,2]
[335195446,1723971046896,-471.66054734,0.0001816,2]
[335195447,1723971046906,-500.0,0.0001816,2]
[335195448,1723971046915,-503.82090815,0.0001816,2]
[335195449,1723971046925,-500.0,0.0001816,2]
[335195450,1723971046936,-500.0,0.0001816,2]
[335195451,1723971046945,-500.0,0.0001816,2]
[335195452,1723971046955,-500.0,0.0001816,2]
[335195453,1723971046966,-500.0,0.0001816,2]
[335195454,1723971046976,-296.38787265,0.0001816,2]
[335195455,1723971046986,-500.0,0.0001816,2]
[335195456,1723971046995,-508.84744568,0.0001816,2]
[335195457,1723971047005,-505.68544623,0.0001816,2]
[335195458,1723971047015,-500.0,0.0001816,2]
[335195459,1723971047028,-549.04321915,0.0001816,2]
[335195460,1723971047038,-1157.94,0.0001816,2]
[335195461,1723971047047,-553.69321237,0.0001816,2]
[335195462,1723971047058,-276.85208661,0.0001816,2]
[335195463,1723971047067,-500.0,0.0001816,2]
[335195464,1723971047076,-289.56560944,0.0001816,2]
[335195465,1723971047189,-500.0,0.0001816,2]
[335195466,1723971047199,-507.81605481,0.0001816,2]
[335195467,1723971047209,-505.55103988,0.0001816,2]
[335195468,1723971047218,-721.24,0.0001816,2]
[335195469,1723971047228,-513.21989605,0.0001816,2]
[335195470,1723971047238,-504.05644384,0.0001816,2]
[335195471,1723971047247,-500.0,0.0001816,2]
[335195472,1723971047257,-504.50626251,0.0001816,2]
[335195473,1723971047266,-500.0,0.0001816,2]
[335195474,1723971047276,-500.0,0.0001816,2]
[335195475,1723971047284,-500.0,0.0001816,2]
[335195476,1723971047294,-504.66007728,0.0001816,2]
[335195477,1723971047303,-732.53,0.0001816,2]
[335195478,1723971047313,-500.0,0.0001816,2]
[335195479,1723971047322,-500.0,0.0001816,2]
[335195480,1723971047331,-838.42,0.0001816,2]
[335195481,1723971047340,-500.0,0.0001816,2]
[335195482,1723971047350,-500.0,0.0001816,2]
[335195483,1723971047359,-510.5141272,0.0001816,2]
[335195484,1723971047368,-500.0,0.0001816,2]
[335195485,1723971047378,-500.0,0.0001816,2]
[335195486,1723971047387,-500.0,0.0001816,2]
[335195487,1723971047396,-500.0,0.0001816,2]
[335195488,1723971047406,-1004.86,0.0001816,2]
[335195489,1723971047415,-500.0,0.0001816,2]
[335195490,1723971047425,-500.0,0.0001816,2]
[335195491,1723971047434,-376.41422012,0.0001816,2]
[335195492,1723971047444,-500.0,0.0001816,2]
[335195493,1723971047453,-502.35481281,0.0001816,2]
[335195494,1723971047463,-500.0,0.0001816,2]
[335195495,1723971047473,-500.0,0.0001816,2]
[335195496,1723971047482,-554.44,0.0001816,2]
[335195497,1723971047491,-500.0,0.0001816,2]
[335195498,1723971047500,-500.0,0.0001816,2]
[335195499,1723971047510,-500.0,0.0001816,2]
[335195500,1723971047520,-500.0,0.0001816,2]
[335195501,1723971047529,-500.0,0.0001816,2]
[335195502,1723971047539,-500.0,0.0001816,2]
[335195503,1723971047548,-500.0,0.0001816,2]
[335195504,1723971047557,-500.0,0.0001816,2]
[335195505,1723971047567,-500.0,0.0001816,2]
[335195506,1723971047576,-528.20501556,0.0001816,2]
[335195507,1723971047586,-500.0,0.0001816,2]
[335195508,1723971047595,-512.92510191,0.0001816,2]
[335195509,1723971047604,-573.79733495,0.0001816,2]
[335195510,1723971047613,-500.0,0.0001816,2]
[335195511,1723971047622,-500.0,0.0001816,2]
[335195512,1723971047632,-500.0,0.0001816,2]
[335195513,1723971047641,-500.0,0.0001816,2]
[335195514,1723971047651,-418.11879524,0.0001816,2]
[335195515,1723971047660,-500.0,0.0001816,2]
[335195516,1723971047669,-500.0,0.0001816,2]
[335195517,1723971047679,-953.29878775,0.0001816,2]
[335195518,1723971047689,-5244.23039316,0.0001816,2]
[335195519,1723971047698,-589.133361,0.00018164,2]
[335195520,1723971047707,-15649.67,0.00018296,2]
[335195521,1723971047717,-150.112233,0.000183,2]
[335195522,1723971047726,-15649.67,0.00018329,2]
[335195523,1723971047735,-15649.67,0.00018329,2]
[335195524,1723971047745,-15649.67,0.00018329,2]
[335195525,1723971047754,-15649.67,0.00018329,2]
[335195526,1723971047763,-15649.82,0.00018329,2]
[335195527,1723971047775,-151.0,0.0001833,2]
[335195528,1723971047786,-151.0,0.0001833,2]
[335195529,1723971047795,-5063.86571891,0.00018352,2]
[335195530,1723971047804,-500.0,0.00018361,2]
[335195531,1723971047814,-500.0,0.00018361,2]
[335195532,1723971047823,-500.0,0.00018361,2]
[335195533,1723971047833,-197.73105939,0.00018361,2]
[335195534,1723971047842,-523.53726131,0.00018361,2]
[335195535,1723971047851,-500.0,0.00018361,2]
[335195536,1723971047861,-513.29854098,0.00018361,2]
[335195537,1723971047870,-500.0,0.00018361,2]
[335195538,1723971047879,-792.88,0.00018361,2]
[335195539,1723971047889,-500.0,0.00018361,2]
[335195540,1723971047899,-500.0,0.00018361,2]
[335195541,1723971047909,-596.25,0.00018361,2]
[335195542,1723971047919,-500.0,0.00018361,2]
[335195543,1723971047928,-500.0,0.00018361,2]
[335195544,1723971047938,-200.0,0.00018361,2]
[335195545,1723971047947,-500.0,0.00018361,2]
[335195546,1723971047957,-568.14802954,0.00018361,2]
[335195547,1723971047966,-500.0,0.00018361,2]
[335195548,1723971047975,-500.0,0.00018361,2]
[335195549,1723971047987,-500.0,0.00018361,2]
[335195550,1723971047997,-500.0,0.00018361,2]
[335195551,1723971048007,-656.38,0.00018361,2]
[335195552,1723971048016,-500.0,0.00018361,2]
[335195553,1723971048027,-500.0,0.00018361,2]
[335195554,1723971048038,-500.0,0.00018361,2]
[335195555,1723971048047,-500.0,0.00018361,2]
[335195556,1723971048057,-638.99,0.00018361,2]
[335195557,1723971048067,-7386.24,0.00018361,2]
[335195558,1723971048077,-674.99,0.00018361,2]
[335195559,1723971048088,-520.92,0.00018361,2]
[335195560,1723971048098,-500.0,0.00018361,2]
[335195561,1723971048107,-517.93,0.00018361,2]
[335195562,1723971048117,-500.0,0.00018361,2]
[335195563,1723971048129,-721.16,0.00018361,2]
[335195564,1723971048139,-500.0,0.00018361,2]
[335195565,1723971048149,-895.16,0.00018361,2]
[335195566,1723971048159,-1263.86,0.00018361,2]
[335195567,1723971048169,-500.0,0.00018361,2]
[335195568,1723971048178,-728.01,0.00018361,2]
[335195569,1723971048188,-575.46,0.00018361,2]
[335195570,1723971048200,-500.0,0.00018361,2]
[335195571,1723971048211,-2750.48,0.00018361,2]
[335195572,1723971048221,-500.0,0.00018361,2]
[335195573,1723971048231,-279.91221642,0.00018361,2]
[335195574,1723971048241,-825.12,0.00018361,2]
[335195575,1723971048251,-868.16,0.00018361,2]
[335195576,1723971048261,-500.0,0.00018361,2]
[335195577,1723971048272,-500.0,0.00018361,2]
[335195578,1723971048282,-500.0,0.00018361,2]
[335195579,1723971048291,-500.0,0.00018361,2]
[335195580,1723971048301,-914.46,0.00018361,2]
[335195581,1723971048310,-553.6,0.00018361,2]
[335195582,1723971048322,-2126.93,0.00018361,2]
[335195583,1723971048332,-500.0,0.00018361,2]
[335195584,1723971048342,-500.0,0.00018361,2]
[335195585,1723971048354,-574.15,0.00018361,2]
[335195586,1723971048364,-934.44,0.00018361,2]
[335195587,1723971048374,-500.0,0.00018361,2]
[335195588,1723971048385,-787.87,0.00018361,2]
[335195589,1723971048395,-500.0,0.00018361,2]
[335195590,1723971048405,-500.0,0.00018361,2]
[335195591,1723971048414,-818.84,0.00018361,2]
[335195592,1723971048425,-150.112233,0.000184,2]
[335195593,1723971048436,-150.112233,0.000184,2]
[335195594,1723971048446,-500.0,0.0001842,2]
[335195595,1723971048455,-1282.59,0.0001842,2]
[335195596,1723971048465,-1505.22,0.0001842,2]
[335195597,1723971048476,-500.0,0.0001842,2]
[335195598,1723971048486,-500.0,0.0001842,2]
[335195599,1723971048496,-1342.19,0.0001842,2]
[335195600,1723971048506,-5154.28,0.0001842,2]
[335195601,1723971048516,-1253.09,0.0001842,2]
[335195602,1723971048528,-1462.81,0.0001842,2]
[335195603,1723971048538,-826.7,0.0001842,2]
[335195604,1723971048547,-1209.61,0.0001842,2]
[335195605,1723971048557,-607.02,0.0001842,2]
[335195606,1723971048567,-500.0,0.0001842,2]
[335195607,1723971048577,-1986.35,0.0001842,2]
[335195608,1723971048587,-500.0,0.0001842,2]
[335195609,1723971048596,-500.0,0.0001842,2]
[335195610,1723971048605,-504.56767197,0.0001842,2]
[335195611,1723971048614,-1466.62,0.0001842,2]
[335195612,1723971048623,-502.95311286,0.0001842,2]
[335195613,1723971048633,-500.0,0.0001842,2]
[335195614,1723971048644,-500.0,0.0001842,2]
[335195615,1723971048654,-599.06,0.0001842,2]
[335195616,1723971048663,-502.57367614,0.0001842,2]
[335195617,1723971048674,-609.1,0.0001842,2]
[335195618,1723971048683,-1161.08,0.0001842,2]
[335195619,1723971048694,-1062.86,0.0001842,2]
[335195620,1723971048704,-703.24,0.0001842,2]
[335195621,1723971048714,-500.0,0.0001842,2]
[335195622,1723971048723,-500.0,0.0001842,2]
[335195623,1723971048734,-500.0,0.0001842,2]
[335195624,1723971048743,-989.63,0.0001842,2]
[335195625,1723971048754,-778.86,0.0001842,2]
[335195626,1723971048764,-500.0,0.0001842,2]
[335195627,1723971048773,-504.1198036,0.0001842,2]
[335195628,1723971048782,-505.01,0.0001842,2]
[335195629,1723971048791,-500.0,0.0001842,2]
[335195630,1723971048802,-819.08,0.0001842,2]
[335195631,1723971048812,-500.0,0.0001842,2]
[335195632,1723971048823,-500.0,0.0001842,2]
[335195633,1723971048833,-1495.25,0.0001842,2]
[335195634,1723971048843,-1113.33,0.00018423,2]
[335195635,1723971048854,-500.0,0.00018423,2]
[335195636,1723971048864,-500.0,0.00018423,2]
[335195637,1723971048875,-500.0,0.00018423,2]
[335195638,1723971048886,-500.0,0.00018423,2]
[335195639,1723971048896,-394.61914117,0.00018423,2]
[335195640,1723971048905,-500.0,0.00018423,2]
[335195641,1723971048915,-549.63,0.00018423,2]
[335195642,1723971048925,-500.0,0.00018423,2]
[335195643,1723971048935,-500.0,0.00018423,2]
[335195644,1723971048946,-500.0,0.00018423,2]
[335195645,1723971048958,-500.0,0.00018423,2]
[335195646,1723971048968,-500.0,0.00018423,2]
[335195647,1723971048978,-570.15,0.00018423,2]
[335195648,1723971048990,-686.22,0.00018423,2]
[335195649,1723971048999,-448.51956165,0.00018423,2]
[335195650,1723971049009,-500.0,0.00018423,2]
[335195651,1723971049019,-511.5504631,0.00018423,2]
[335195652,1723971049029,-509.09326815,0.00018423,2]
[335195653,1723971049039,-813.3,0.00018423,2]
[335195654,1723971049065,-1421.03,0.00018423,2]
[335195655,1723971049076,-1162.98,0.00018423,2]
[335195656,1723971049087,-500.0,0.00018423,2]
[335195657,1723971049097,-740.26,0.00018423,2]
[335195658,1723971049107,-500.0,0.00018423,2]
[335195659,1723971049117,-569.16,0.00018423,2]
[335195660,1723971049128,-500.0,0.00018423,2]
[335195661,1723971049141,-552.58696288,0.00018423,2]
[335195662,1723971049150,-720.31,0.00018423,2]
[335195663,1723971049160,-815.49,0.00018423,2]
[335195664,1723971049171,-644.57777291,0.00018423,2]
[335195665,1723971049181,-500.0,0.00018423,2]
[335195666,1723971049191,-500.0,0.00018423,2]
[335195667,1723971049200,-500.0,0.00018423,2]
[335195668,1723971049210,-779.06,0.00018423,2]
[335195669,1723971049220,-500.0,0.00018423,2]
[335195670,1723971049230,-500.0,0.00018423,2]
[335195671,1723971049239,-596.31,0.00018423,2]
[335195672,1723971049249,-829.0,0.00018423,2]
[335195673,1723971049258,-500.0,0.00018423,2]
[335195674,1723971049381,-500.0,0.00018423,2]
[335195675,1723971049391,-500.0,0.00018423,2]
[335195676,1723971049400,-500.0,0.00018423,2]
[335195677,1723971049410,-500.0,0.00018423,2]
[335195678,1723971049419,-500.0,0.00018423,2]
[335195679,1723971049428,-500.0,0.00018423,2]
[335195680,1723971049438,-500.0,0.00018423,2]
[335195681,1723971049448,-622.83,0.00018423,2]
[335195682,1723971049458,-530.35646287,0.00018423,2]
[335195683,1723971049467,-576.04,0.00018423,2]
[335195684,1723971049476,-500.0,0.00018423,2]
[335195685,1723971049485,-500.0,0.00018423,2]
[335195686,1723971049495,-948.05,0.00018423,2]
[335195687,1723971049504,-500.0,0.00018423,2]
[335195688,1723971049513,-500.0,0.00018423,2]
[335195689,1723971049524,-500.0,0.00018423,2]
[335195690,1723971049533,-538.59,0.00018423,2]
[335195691,1723971049543,-695.18,0.00018423,2]
[335195692,1723971049553,-1000.0,0.00018423,2]
[335195693,1723971049563,-979.67,0.00018423,2]
[335195694,1723971049572,-500.0,0.00018423,2]
[335195695,1723971049582,-500.0,0.00018423,2]
[335195696,1723971049592,-500.0,0.00018423,2]
[335195697,1723971049602,-500.0,0.00018423,2]
[335195698,1723971049612,-512.53,0.00018423,2]
[335195699,1723971049622,-500.0,0.00018423,2]
[335195700,1723971049631,-500.0,0.00018423,2]
[335195701,1723971049641,-500.0,0.00018423,2]
[335195702,1723971049651,-500.0,0.00018423,2]
[335195703,1723971049660,-283.61733,0.00018423,2]
[335195704,1723971049669,-511.98,0.00018423,2]
[335195705,1723971049679,-566.77,0.00018423,2]
[335195706,1723971049689,-283.61733,0.00018423,2]
[335195707,1723971049698,-500.0,0.00018423,2]
[335195708,1723971049708,-500.0,0.00018423,2]
[335195709,1723971049718,-500.0,0.00018423,2]
[335195710,1723971049727,-500.0,0.00018423,2]
[335195711,1723971049737,-500.0,0.00018423,2]
[335195712,1723971049747,-500.0,0.00018423,2]
[335195713,1723971049756,-500.0,0.00018423,2]
[335195714,1723971049765,-743.39,0.00018423,2]
[335195715,1723971049776,-500.0,0.00018423,2]
[335195716,1723971049786,-536.84,0.00018423,2]
[335195717,1723971049796,-500.0,0.00018423,2]
[335195718,1723971049805,-500.0,0.00018423,2]
[335195719,1723971049815,-502.03791934,0.00018423,2]
[335195720,1723971049825,-500.0,0.00018423,2]
[335195721,1723971049834,-1518.55,0.00018423,2]
[335195722,1723971049843,-500.0,0.00018423,2]
[335195723,1723971049853,-515.17274686,0.00018423,2]
[335195724,1723971049862,-672.8,0.00018423,2]
[335195725,1723971049872,-500.0,0.00018423,2]
[335195726,1723971049882,-861.87,0.00018423,2]